[Event "Saint Louis Super Swiss 2023"]
[Site "Saint Louis"]
[Date "2023.03.13"]
[Round "3.2"]
[White "Theodorou, Nikolas"]
[Black "Swiercz, Dariusz"]
[Result "1-0"]
[ECO "C77"]
[WhiteElo "2584"]
[BlackElo "2646"]
[Annotator "TA"]
[PlyCount "165"]
[EventDate "2023.03.12"]
[EventType "swiss"]
[EventCountry "USA"]
[SourceTitle "playchess.com"]
[Source "ChessBase"]
[SourceQuality "1"]
[TimeControl "5400+30"]

{[%evp 13,165,21,21,27,20,17,17,23,20,19,34,29,56,52,58,54,78,68,60,22,49,38,33,34,50,30,50,56,53,52,65,58,72,45,46,40,76,-6,44,18,39,14,8,18,12,19,12,12,10,7,11,9,15,0,8,0,0,0,0,0,0,0,0,0,11,0,0,0,0,0,88,35,50,17,193,213,209,156,204,170,200,162,208,31,39,29,37,0,81,81,182,87,179,172,197,115,116,116,144,116,314,314,314,306,314,306,228,300,306,306,306,299,393,392,350,315,300,260,267,258,257,253,486,433,909,458,902,852,29976,29977,29977,29978,29978,29979,29988,29989,29989,29990,29990,29991,29991,29992,29992,29993,29993,29994,29994,29995,29995,29996,29996,29997,29997,29998]} 1. e4 {[%emt 0:00:04]} e5 {[%emt 0:00:17]} 2. Nf3 {[%emt 0:00:06]} Nc6 {[%emt 0:00:04]} 3. Bb5 {[%emt 0:00:05]} a6 {[%emt 0:03:32]} 4. Ba4 {[%emt 0:00:06]} Nf6 {[%emt 0:00:05]} 5. d3 {[%emt 0:01:52]} d6 {[%emt 0:01:17]} 6. c3 {[%emt 0:08:02]} g6 {[%emt 0:00:47]} 7. O-O {[%emt 0:00:09]} Bg7 {[%emt 0:00:03]} 8. h3 {[%emt 0:00:47] C77: Ruy Lopez: 3...a6 4 Ba4 Nf6, unusual lines.} O-O {[%emt 0:00:07]} 9. Be3 {[%emt 0:01:33]} b5 {[%emt 0:11:00]} 10. Bc2 {[%emt 0:01:15] The position is equal.} Re8 {[%emt 0:02:57]} 11. Nbd2 {[%emt 0:02:38]} Bb7 {[%emt 0:03:14]} 12. a4 {[%emt 0:03:01]} Qd7 {[%emt 0:27:33]} 13. b4 {[%emt 0:07:36] [#]} Nd8 $146 {[%emt 0:03:36]} ({Predecessor:} 13... h6 14. Re1 Rad8 15. Qb1 g5 16. Nf1 Nh5 17. d4 exd4 18. Nxd4 Nxd4 19. Bxd4 Bxd4 20. cxd4 {0-1 Deng,T (2105)-Xu,Y (2456) Asian Continental op 16th 2017 (5)}) 14. Re1 {[%emt 0:08:21]} (14. Nb3 {is more complex.} Ne6 15. Ng5 Nf4 16. Na5) 14... Rb8 {[%emt 0:08:37]} 15. axb5 {[%emt 0:11:01]} axb5 {[%emt 0:00:05]} 16. Ra7 {[%emt 0:00:14]} Nc6 {[%emt 0:00:20]} 17. Ra3 {[%emt 0:01:16]} Ra8 {[%emt 0:00:39]} 18. Rxa8 {[%emt 0:01:13]} Bxa8 {[%emt 0:03:29]} 19. Qb1 {[%emt 0:00:23]} Bb7 {[%emt 0:00:20]} 20. d4 {[%emt 0:04:08]} Nh5 {[%emt 0:09:45]} 21. Bd3 {[%emt 0:02:26]} (21. d5 Ne7 $11) 21... Nd8 {[%emt 0:00:01]} 22. Bf1 {[%emt 0:04:08]} Ne6 {[%emt 0:03:08]} 23. Qd3 {[%emt 0:09:00]} exd4 {[%emt 0:12:28]} 24. cxd4 {[%emt 0:02:00]} (24. Nxd4 {feels hotter.} Nxd4 25. cxd4 f5 26. exf5 Nf4 27. Qxb5 Qxb5 28. Bxb5 Nxg2 29. Bxe8 Nxe1 30. fxg6 Kf8 31. Bf7) 24... c6 {[%emt 0:00:01]} 25. Qb1 {[%emt 0:04:25]} (25. Nb3 $16) 25... Nf6 {[%emt 0:01:07]} ({Better is} 25... d5 $11) 26. Bd3 {[%emt 0:03:18]} Qe7 {[%emt 0:00:32]} 27. Nb3 {[%emt 0:03:31]} (27. Ng5 $5) 27... d5 $1 {[%emt 0:01:11]} 28. e5 {[%emt 0:02:15]} Nd7 {[%emt 0:00:01]} 29. Nc5 {[%emt 0:00:51]} Ndxc5 {[%emt 0:01:09]} 30. bxc5 {[%emt 0:03:38]} Ra8 {[%emt 0:00:31]} 31. h4 {[%emt 0:00:46][%cal Bh3h4,Bh4h5,Bh5h6][%mdl 32]} Bc8 {[%emt 0:02:52] [#]} 32. h5 $1 {[%emt 0:01:22]} Qa7 {[%emt 0:00:10]} 33. Nh2 {[%emt 0:01:36][%cal Bf3h2,Bh2g4,Bg4f6][%mdl 32]} Qe7 {[%emt 0:03:13]} 34. h6 {[%emt 0:06:03]} Bf8 {[%emt 0:00:10]} 35. Ng4 {[%emt 0:00:48]} Kh8 {[%emt 0:00:20][%cal Re6c5]} 36. Nf6 {[%emt 0:01:11]} Qd8 {[%emt 0:02:07]} 37. Qb2 {[%emt 0:02:49]} Be7 {[%emt 0:00:34]} 38. Ra1 {[%emt 0:00:36]} Bb7 {[%emt 0:01:07]} 39. Rxa8 {[%emt 0:00:13]} Qxa8 {[%emt 0:00:07]} 40. f4 {[%emt 0:01:00] f5 would be deadly.} Bxf6 {[%emt 0:01:04]} 41. exf6 {[%emt 0:00:02]} Qe8 {[%emt 0:00:06] Black is weak on the dark squares} (41... Nf8 $11) 42. Kf2 {[%emt 0:02:04]} (42. Qf2 $1 $16) 42... Nf8 {[%emt 0:01:07]} 43. g4 {[%emt 0:02:32]} Bc8 {[%emt 0:00:31]} (43... Nd7 $11 {and Black has nothing to worry.}) 44. f5 $18 {[%emt 0:00:21]} Kg8 {[%emt 0:00:31]} 45. Bf4 {[%emt 0:00:48]} Nd7 {[%emt 0:00:12]} (45... Qd8 $16 {was necessary.}) 46. Bg5 {[%emt 0:00:54]} Nf8 {[%emt 0:00:40]} 47. Qa3 {[%emt 0:00:40]} Bd7 {[%emt 0:00:10]} (47... Bb7 {keeps fighting.} 48. Qc1 Nd7) 48. Qa2 $2 {[%emt 0:00:43]} (48. Qc1 $1 $18) 48... Qc8 $14 {[%emt 0:00:36][%cal Rg6f5]} 49. Qb1 {[%emt 0:00:19]} Qb8 {[%emt 0:00:22] Inhibits Bf4.} 50. Kg2 {[%emt 0:00:09] Dodges Qh2+} Qe8 {[%emt 0:00:10]} (50... b4 $11 {keeps the balance.}) 51. Bf4 $16 {[%emt 0:00:27]} Bc8 {[%emt 0:00:21]} (51... Qd8 $16) 52. Kf3 {[%emt 0:00:54]} (52. Qc1 $18 {is more deadly.}) 52... Nd7 {[%emt 0:00:32] [#]} (52... Qd8 $16 {might work better.}) 53. Bg5 $1 $18 {[%emt 0:00:03]} (53. g5 Nf8 $15) 53... Nf8 {[%emt 0:00:16]} 54. Qb4 {[%emt 0:00:45]} (54. Kf2 $18) 54... Bd7 $16 {[%emt 0:00:09]} 55. Bf4 {[%emt 0:00:39]} Qd8 {[%emt 0:01:12]} 56. Be5 {[%emt 0:00:33] aiming for Qa3.} Be8 $2 {[%emt 0:01:05]} (56... Qa8 $16) 57. Qe1 {[%emt 0:00:18]} Bd7 {[%emt 0:00:33]} 58. Bc2 {[%emt 0:00:49]} Qe8 {[%emt 0:00:21]} 59. Kf4 {[%emt 0:00:27]} Bc8 {[%emt 0:00:38]} 60. Qa5 {[%emt 0:00:23]} Bd7 {[%emt 0:00:43]} 61. Bd3 {[%emt 0:00:22]} Bc8 {[%emt 0:00:27]} 62. Qa7 {[%emt 0:00:42] Black must now prevent Qe7.} Qd7 {[%emt 0:00:35]} 63. Qb8 {[%emt 0:00:24]} Qd8 {[%emt 0:00:29]} 64. Qa8 {[%emt 0:00:36] Repels Qa5} Qe8 {[%emt 0:00:29]} 65. Kg5 {[%emt 0:00:30]} Bd7 {[%emt 0:00:33]} 66. Qb7 {[%emt 0:00:13]} (66. Qxe8 $6 Bxe8 67. Bd6 Nd7 $18) 66... Qd8 {[%emt 0:00:27] Threatens to win with ...Qa5.} 67. Qa7 {[%emt 0:00:20] Repels Qa5. Strongly threatening Bd6.} Qc8 $2 {[%emt 0:00:29]} (67... Qe8 68. Qa5 Bc8) 68. Bd6 $18 {[%emt 0:00:25] Hoping for Bxf8.} Qd8 {[%emt 0:00:29]} (68... Qe8 $142) 69. Be7 {[%emt 0:00:30] Active counter play!} Qc8 {[%emt 0:00:14]} (69... Qe8 $142 70. Qb7 Bc8) 70. Bxf8 {[%emt 0:01:10]} Kxf8 {[%emt 0:00:42]} 71. fxg6 {[%emt 0:00:09] KQB-KQB. White mates.} Qe8 {[%emt 0:00:09]} 72. g7+ {[%emt 0:00:40]} (72. gxh7 Qe3+ 73. Kh4 Qe1+ 74. Kh3 (74. Kh5 Qh1+ 75. Kg5 Qc1+ 76. Kh5 Qh1+ 77. Kg5 Qc1+ 78. Kh5 Qh1+ $11) 74... Qh1+ 75. Kg3 Qg1+ 76. Kh3 Qh1+ 77. Kg3 Qg1+ 78. Kh3 Qh1+ $11) 72... Kg8 {[%emt 0:00:01]} 73. Kf4 {[%emt 0:00:13]} Qe1 {[%emt 0:00:16]} 74. Qb8+ {[%emt 0:00:59]} ({Weaker is} 74. Qxd7 Qf2+ 75. Ke5 (75. Kg5 Qd2+ 76. Kh5 Qh2+ 77. Kg5 Qd2+ 78. Kf5 Qxd3+ 79. Kf4 Qxd4+ 80. Kg3 Qe5+ 81. Kg2 Qe4+ 82. Kh2 Qe5+ 83. Kh1 Qe4+ 84. Kg1 Qe1+ 85. Kh2 Qe5+ 86. Kh3 Qe3+ 87. Kg2 Qe4+ 88. Kh3 Qe3+ 89. Kg2 Qe4+ $11) 75... Qg3+ 76. Kf5 Qxd3+ 77. Kf4 (77. Ke5 Qg3+ 78. Kf5 Qd3+ 79. Kf4 Qxd4+ 80. Kg3 Qe5+ 81. Kh3 Qe3+ 82. Kg2 Qe4+ 83. Kh3 Qe3+ 84. Kg2 Qe4+ 85. Kh3 Qe3+ $11) 77... Qxd4+ 78. Kg3 Qe5+ 79. Kh3 Qe3+ 80. Kg2 Qe4+ 81. Kh3 Qe3+ 82. Kg2 Qe4+ 83. Kh3 Qe3+ $11) 74... Be8 {[%emt 0:00:00]} 75. Kf3 {[%emt 0:00:34]} Qh1+ {[%emt 0:00:46] [#]} 76. Kf2 $1 {[%emt 0:00:34][%cal Rb8e8]} Qh4+ {[%emt 0:00:05]} 77. Ke2 {[%emt 0:00:31][%cal Rb8e8]} Qxg4+ {[%emt 0:01:05]} 78. Kd2 {[%emt 0:00:01][%cal Rb8e8]} Qg2+ {[%emt 0:00:49]} 79. Kc3 {[%emt 0:00:54][%cal Rb8e8]} b4+ {[%emt 0:00:01]} 80. Kb3 {[%emt 0:00:23][%cal Rb8e8]} Qe2 {[%emt 0:00:01]} 81. Bxh7+ {[%emt 0:00:15][%mdl 64] Promotion} Kxh7 {[%emt 0:00:04]} 82. g8=Q+ $1 {[%emt 0:00:04][%mdl 64] Decoy} (82. Qxb4 $2 {perishes.} Qf3+ 83. Qc3 Qxf6 $19) 82... Kxg8 {[%emt 0:00:47]} 83. Qg3+ {[%emt 0:00:03] Artfully played by Theodorou.   Weighted Error Value: White=0.17 (very precise) /Black=0.24 (precise)} 1-0

[Event "Saint Louis Super Swiss 2023"]
[Site "Saint Louis"]
[Date "2023.03.13"]
[Round "3.3"]
[White "Corrales Jimenez, Fidel"]
[Black "Hakobyan, Aram"]
[Result "1-0"]
[ECO "E20"]
[WhiteElo "2489"]
[BlackElo "2620"]
[Annotator "TA"]
[PlyCount "49"]
[EventDate "2023.03.12"]
[EventType "swiss"]
[EventCountry "USA"]
[SourceTitle "playchess.com"]
[Source "ChessBase"]
[SourceQuality "1"]
[TimeControl "5400+30"]

{[%evp 9,49,-7,0,-12,30,20,26,26,25,24,22,0,0,0,0,0,3,-54,-36,-106,-96,-125,0,0,0,0,0,0,0,0,12,15,15,14,38,27,420,420,422,428,427,391]} 1. d4 {[%emt 0:03:26]} Nf6 {[%emt 0:00:11]} 2. c4 {[%emt 0:00:03]} e6 {[%emt 0:00:11]} 3. Nc3 {[%emt 0:00:04]} Bb4 {[%emt 0:00:06]} 4. f3 {[%emt 0:00:06]} d5 {[%emt 0:00:06]} 5. a3 {[%emt 0:00:04]} Bxc3+ {[%emt 0:00:06]} 6. bxc3 {[%emt 0:00:04][%cal Oe2e4] E20: Nimzo-Indian: 4 g3 and 4 f3.} dxc4 {[%emt 0:00:06][%cal Oc7c5]} 7. e4 {[%emt 0:00:43]} b5 {[%emt 0:00:05]} 8. a4 {[%emt 0:01:29][%mdl 1024] White has compensation. White has an edge.} c6 {[%emt 0:00:03]} 9. Ba3 {[%emt 0:01:09]} Nfd7 {[%emt 0:00:02] [#]} 10. f4 $146 {[%emt 0:26:26]} ({Predecessor:} 10. Be2 Nb6 11. axb5 cxb5 12. Rb1 a6 13. Qd2 Nc6 14. Bd1 b4 15. Bxb4 Nxb4 16. Rxb4 {½-½ Schmalz,P (2388)-Fremmegaard,J (2337) EU-ch 2020 sf02 email}) 10... a6 {[%emt 0:00:09]} 11. Nf3 {[%emt 0:02:07]} c5 {[%emt 0:02:07]} 12. dxc5 {[%emt 0:04:39]} Bb7 {[%emt 0:00:59]} 13. Qd6 {[%emt 0:06:31]} (13. Be2 $11) 13... Nf6 $1 $15 {[%emt 0:07:17]} 14. Nd4 {[%emt 0:08:55] [#]} ({White should play} 14. axb5 $15 Qxd6 15. cxd6 axb5 16. Nd4) 14... Nc6 $1 {[%emt 0:11:37][%mdl 512]} 15. Qxd8+ {[%emt 0:08:28]} (15. Nxb5 axb5) 15... Rxd8 {[%emt 0:04:51]} (15... Kxd8 $17 16. Nxb5 axb5 17. axb5 Kc7 18. bxc6 Bxc6 19. Bxc4 Ra4) 16. Nxb5 $1 $11 {[%emt 0:00:11]} axb5 {[%emt 0:02:29]} 17. axb5 {[%emt 0:01:22]} Nxe4 {[%emt 0:01:15]} 18. bxc6 {[%emt 0:01:09]} Bxc6 {[%emt 0:00:06]} 19. Bb4 {[%emt 0:02:03]} O-O {[%emt 0:05:20]} 20. Bxc4 {[%emt 0:07:23]} Rd2 {[%emt 0:00:32]} 21. Be2 {[%emt 0:01:32]} Rb2 {[%emt 0:08:31]} 22. Bf3 {[%emt 0:01:24]} Bb5 $2 {[%emt 0:16:57][%mdl 8192] [#]} 23. O-O-O $18 {[%emt 0:02:45]} ({Not} 23. Bxe4 Re2+ 24. Kd1 Rxe4 $11) 23... Rxb4 {[%emt 0:06:51]} 24. cxb4 {[%emt 0:00:02]} Nf2 {[%emt 0:00:11]} 25. Kb2 {[%emt 0:01:04] Weighted Error Value: White=0.15 (very precise) /Black=0.42} 1-0

[Event "Saint Louis Super Swiss 2023"]
[Site "Saint Louis"]
[Date "2023.03.13"]
[Round "3.4"]
[White "Dudin, Gleb"]
[Black "Quesada Perez, Yasser"]
[Result "1/2-1/2"]
[ECO "E11"]
[WhiteElo "2469"]
[BlackElo "2604"]
[Annotator "TA"]
[PlyCount "158"]
[EventDate "2023.03.12"]
[EventType "swiss"]
[EventCountry "USA"]
[SourceTitle "playchess.com"]
[Source "ChessBase"]
[SourceQuality "1"]
[TimeControl "5400+30"]

{[%evp 17,157,33,31,31,34,30,36,36,53,22,58,60,59,63,52,52,52,52,52,57,109,96,105,112,109,105,97,86,110,96,106,110,110,110,136,125,110,95,106,95,98,75,157,108,183,185,159,139,139,129,143,131,149,123,135,131,137,126,123,124,131,120,131,100,101,98,85,0,0,0,0,0,0,0,0,0,20,0,0,0,0,0,0,0,0,0,0,0,0,0,0,0,0,0,0,0,0,0,0,0,0,0,0,0,0,0,0,0,0,0,0,0,0,0,0,0,0,0,0,0,0,0,0,0,0,0,0,0,0,0,0,0,0,0,0,0,0,0,0,0,0,0]} 1. d4 {[%emt 0:06:51]} Nf6 {[%emt 0:00:49]} 2. c4 {[%emt 0:00:13]} e6 {[%emt 0:00:11]} 3. Nf3 {[%emt 0:00:20]} Bb4+ {[%emt 0:01:17]} 4. Bd2 {[%emt 0:00:22]} c5 {[%emt 0:01:10]} 5. Bxb4 {[%emt 0:00:10]} cxb4 {[%emt 0:00:03]} 6. e3 {[%emt 0:00:10]} b6 {[%emt 0:01:16]} 7. Bd3 {[%emt 0:00:10]} Bb7 {[%emt 0:00:05]} 8. O-O {[%emt 0:00:11]} O-O {[%emt 0:01:51]} 9. Nbd2 {[%emt 0:00:08][%cal Bb1d2,Bd2f1,Bf1g3][%mdl 32]} d6 {[%emt 0:01:37]} 10. Re1 {[%emt 0:02:26] E11: Bogo-Indian.} Re8 {[%emt 0:04:06]} 11. e4 {[%emt 0:03:14]} e5 {[%emt 0:01:45]} 12. Nf1 {[%emt 0:00:10] White is slightly better.} Nc6 {[%emt 0:07:42]} 13. Bc2 {[%emt 0:04:08] [#]} Rc8 $146 {[%emt 0:10:20]} ({Predecessor:} 13... Qc7 14. Ng3 Ne7 15. Rc1 Rac8 16. Ba4 Red8 17. Nh4 Ng6 18. Nxg6 hxg6 19. Qd2 a5 {0-1 Moradiabadi,E (2502)-Melkumyan,H (2379) IRI-chT Iran 2005 (5)}) 14. Ba4 {[%emt 0:06:56]} exd4 {[%emt 0:04:16]} 15. Ng3 {[%emt 0:02:14]} d3 {[%emt 0:03:10]} 16. Qxd3 {[%emt 0:21:34]} Ne5 {[%emt 0:01:06]} 17. Nxe5 {[%emt 0:01:28]} dxe5 {[%emt 0:11:57]} 18. Qb3 {[%emt 0:00:12]} Re6 {[%emt 0:01:59]} (18... Bc6 $1 $14) 19. Qxb4 $16 {[%emt 0:09:02]} a5 {[%emt 0:06:28]} 20. Qa3 {[%emt 0:05:34]} g6 {[%emt 0:18:35][%cal Oe6d6]} 21. Rad1 {[%emt 0:07:12] Repels Rd6} Qc7 {[%emt 0:00:01]} 22. Qd3 {[%emt 0:01:27]} h5 {[%emt 0:00:52]} (22... Qxc4 $2 23. Qxc4 Rxc4 24. Bb3 $18) 23. b3 {[%emt 0:01:12]} Qc5 {[%emt 0:01:52]} 24. Nf1 {[%emt 0:02:17]} h4 {[%emt 0:06:50]} (24... b5 $2 25. Bxb5 Rb8 26. Rd2 $18) 25. h3 {[%emt 0:05:30][%cal Bh2h3,Bh3g4,Bg4g5][%mdl 32]} Kg7 {[%emt 0:00:48]} 26. Nh2 {[%emt 0:03:58]} Rh8 {[%emt 0:01:40]} 27. Ng4 {[%emt 0:04:34]} Nxg4 {[%emt 0:04:17][%mdl 64] Remove Defender} 28. hxg4 {[%emt 0:00:07]} h3 {[%emt 0:00:09]} 29. Qe3 {[%emt 0:04:57]} Qa3 {[%emt 0:01:15]} ({Black should play} 29... Qxe3 30. Rxe3 hxg2 31. Kxg2 g5) 30. Bd7 {[%emt 0:06:41]} ({White should try} 30. gxh3 Rd6 31. Rxd6 Qxd6 32. Bb5) 30... h2+ {[%emt 0:01:48]} (30... Rd6 $16) 31. Kh1 $18 {[%emt 0:00:05]} Rd6 {[%emt 0:01:46]} 32. g5 {[%emt 0:01:42]} Rd8 {[%emt 0:02:20] [#]} 33. Rxd6 {[%emt 0:01:02]} Qxd6 {[%emt 0:00:01]} 34. Bg4 {[%emt 0:00:40]} Qd2 {[%emt 0:01:17]} 35. a3 {[%emt 0:00:31]} (35. Kxh2 Qxe3 36. Rxe3 Rd2 $16) 35... Rd3 {[%emt 0:01:14]} 36. Qxd2 {[%emt 0:00:16]} (36. Qxb6 $2 Qxe1+ 37. Kxh2 Qxe4 38. Qf6+ Kg8 $19) 36... Rxd2 $16 {[%emt 0:00:04][%mdl 4096] Endgame KRB-KRB} 37. f3 {[%emt 0:00:41]} (37. Kxh2 $6 Rxf2 38. Re3 Ra2 $11) 37... Rd3 {[%emt 0:01:55]} 38. Rb1 {[%emt 0:00:29]} Kf8 {[%emt 0:00:04]} 39. a4 {[%emt 0:00:26]} Bc6 {[%emt 0:01:01]} 40. b4 {[%emt 0:00:28]} (40. Kxh2 Ke7 $14) 40... Bxa4 {[%emt 0:00:31]} 41. bxa5 {[%emt 0:00:39]} ({Much weaker is} 41. Kxh2 $6 Bb3 $11) 41... bxa5 {[#] And now ...Rd1+ would win.} 42. Rb8+ {[%emt 0:00:30]} ({Weaker is} 42. Kxh2 Bb3 43. c5 Ke7 $15) (42. Rb7 $1 $16 {[%cal Rb7a7]}) 42... Be8 $1 $11 {[%emt 0:00:01] The position is equal.} 43. Ra8 {[%emt 0:00:30]} a4 {[%emt 0:00:21]} 44. c5 {[%emt 0:00:24]} Ke7 {[%emt 0:00:22] Against c6} 45. Ra7+ {[%emt 0:00:23]} Kd8 {[%emt 0:00:04]} 46. Kxh2 {[%emt 0:00:42]} Rc3 {[%emt 0:00:59]} 47. Ra8+ {[%emt 0:00:15]} Ke7 {[%emt 0:00:04]} 48. Ra5 {[%emt 0:00:46]} a3 {[%emt 0:01:04]} 49. Bc8 {[%emt 0:00:32]} Bc6 {[%emt 0:00:44]} 50. Ra7+ {[%emt 0:00:29]} Kf8 {[%emt 0:01:07]} 51. Bg4 {[%emt 0:00:30]} Bb5 {[%emt 0:01:04]} 52. Ra5 {[%emt 0:00:28]} Bc6 {[%emt 0:00:21]} 53. Kg1 {[%emt 0:00:32]} Rc1+ {[%emt 0:00:37]} 54. Kf2 {[%emt 0:00:26]} Rc2+ {[%emt 0:00:21]} 55. Ke3 {[%emt 0:00:24]} a2 {[%emt 0:00:10][%cal Oc6b5]} (55... Rxg2 {simplifies} 56. Bh3 Rc2 57. Rxa3 Rxc5 58. Bg4 Ke8) 56. Kd3 $1 {[%emt 0:00:39]} Rxg2 {[%emt 0:00:06]} 57. Kc3 {[%emt 0:00:30]} Bxe4 {[%emt 0:00:38][%mdl 64] Deflection} 58. fxe4 {[%emt 0:00:24][%cal Oc5c6] c6! is the strong threat.} Rxg4 {[%emt 0:00:03] KR-KR} 59. c6 {[%emt 0:00:38] c7 would kill now.} Rg1 {[%emt 0:00:49]} 60. Rxa2 {[%emt 0:00:29] White threatens c7 and mate.} Rc1+ {[%emt 0:00:04]} 61. Kd3 {[%emt 0:00:30]} (61. Rc2 Rxc2+ 62. Kxc2 Ke7 $19) 61... Rxc6 {[%emt 0:00:08]} 62. Ra5 {[%emt 0:00:21]} Re6 {[%emt 0:00:21]} 63. Kc4 {[%emt 0:00:35]} f5 {[%emt 0:00:50]} 64. gxf6 {[%emt 0:00:22]} Kf7 {[%emt 0:00:04]} 65. Kd5 {[%emt 0:00:41]} Kxf6 {[%emt 0:00:02]} 66. Ra1 {[%emt 0:00:09]} Re8 {[%emt 0:01:27] Strongly threatening ...Rd8+.} 67. Rf1+ {[%emt 0:00:42]} Kg7 {[%emt 0:01:21]} 68. Rg1 {[%emt 0:00:06]} Re7 {[%emt 0:00:08]} 69. Kd6 {[%emt 0:00:12]} Re8 {[%emt 0:00:10]} 70. Kd5 {[%emt 0:00:06]} Kf6 {[%emt 0:01:26] ...Rd8+ would be deadly.} 71. Rf1+ {[%emt 0:00:06]} Kg5 {[%emt 0:00:04]} 72. Rg1+ {[%emt 0:00:06]} Kf4 {[%emt 0:01:09] White must now prevent ...Rd8+.} 73. Rf1+ {[%emt 0:00:06]} Ke3 {[%emt 0:00:16]} 74. Rg1 {[%emt 0:00:05]} Ra8 {[%emt 0:00:52] aiming for ...Ra5+.} 75. Kxe5 {[%emt 0:00:10]} Ra5+ {[%emt 0:00:04]} 76. Kf6 {[%emt 0:00:06]} Kxe4 {[%emt 0:00:04]} 77. Rxg6 {[%emt 0:00:06]} Ra6+ {[%emt 0:00:02]} 78. Kg7 {[%emt 0:00:08]} Rxg6+ {[%emt 0:00:03]} 79. Kxg6 {[%emt 0:00:03]} Ke5 {[%emt 0:00:21] Black defended with fortune.   Weighted Error Value: White=0.08 (flawless) /Black=0.08 (flawless)} 1/2-1/2

[Event "Saint Louis Super Swiss 2023"]
[Site "Saint Louis"]
[Date "2023.03.13"]
[Round "3.5"]
[White "Akobian, Varuzhan"]
[Black "Daggupati, Balaji"]
[Result "1/2-1/2"]
[ECO "D14"]
[WhiteElo "2591"]
[BlackElo "2513"]
[Annotator "TA"]
[PlyCount "56"]
[EventDate "2023.03.12"]
[EventType "swiss"]
[EventCountry "USA"]
[SourceTitle "playchess.com"]
[Source "ChessBase"]
[SourceQuality "1"]
[TimeControl "5400+30"]

{[%evp 16,43,12,11,16,13,13,11,22,22,18,23,25,18,24,0,10,8,19,23,11,13,10,29,18,13,7,10,22,0]} 1. d4 {[%emt 0:00:06]} d5 {[%emt 0:00:04]} 2. c4 {[%emt 0:00:35]} c6 {[%emt 0:00:05]} 3. cxd5 {[%emt 0:00:34]} cxd5 {[%emt 0:00:07]} 4. Nc3 {[%emt 0:00:35]} Nf6 {[%emt 0:00:07]} 5. Nf3 {[%emt 0:00:04]} Nc6 {[%emt 0:00:05]} 6. Bf4 {[%emt 0:00:06]} Bf5 {[%emt 0:00:07]} 7. Qb3 {[%emt 0:05:52]} Na5 {[%emt 0:00:13]} 8. Qa4+ {[%emt 0:00:10]} Bd7 {[%emt 0:00:06]} 9. Qc2 {[%emt 0:00:09]} e6 {[%emt 0:00:56] D14: Slav Defence: Exchange variation with ...Bf5.} 10. e3 {[%emt 0:00:36]} Rc8 {[%emt 0:00:05][%cal Of6e4]} 11. Bd3 {[%emt 0:01:02] Repels Ne4} Bb4 {[%emt 0:00:09][%cal Of6e4]} 12. O-O {[%emt 0:00:25]} Nh5 {[%emt 0:00:26]} 13. Bg5 {[%emt 0:02:20]} ({Reject} 13. Bxh7 Nxf4 14. exf4 Qf6 $15) 13... f6 {[%emt 0:00:23] [#]} 14. Bxh7 $1 {[%emt 0:16:08] Hoping for Ne5.} Bxc3 {[%emt 0:00:31]} (14... Nc4 15. Bh4) 15. bxc3 {[%emt 0:01:42] Strongly threatening Ne5.} fxg5 {[%emt 0:00:19]} 16. Qg6+ {[%emt 0:08:13]} Kf8 {[%emt 0:00:12] Threatens to win with ...Nf6.} 17. Qxh5 {[%emt 0:08:34]} Be8 {[%emt 0:00:13]} 18. Qg4 {[%emt 0:00:17]} Rxh7 {[%emt 0:00:08]} 19. Nxg5 {[%emt 0:00:07]} ({Inferior is} 19. Qxe6 Qd7 20. Nxg5 Qxe6 21. Nxe6+ Ke7 $17) 19... Rh6 {[%emt 0:00:05] [#] And now ...Qd6 would win.} 20. Nxe6+ {[%emt 0:00:25] The position is equal.} Rxe6 {[%emt 0:00:06]} 21. Qxe6 {[%emt 0:00:06]} Nc4 {[%emt 0:00:11]} 22. Qf5+ {[%emt 0:12:29] [#] An uneventful encounter.   Weighted Error Value: White=0.00 (flawless) /Black=0.04 (flawless)} {Predecessor:} Bf7 $146 23. Rfe1 Nd6 24. Qf4 Ne4 25. f3 Nxc3 26. Kh1 Kg8 27. g4 b5 28. Kg2 b4 {½-½ Mis,M (2389)-Nasuta,G (2546) Bialystok Zamenhof Memorial 41st 2022 (7)} 1/2-1/2